Cogmind - Beta 16 @@@ ROGUE MODE // 2025.12.12 @ 01:59:41 Player: shapeshifter Result: Destroyed by S-43 Plague with Heavy Machine Gun Performance ------------- Evolutions (8) 4000 Regions Visited (28) 5600 Robots Destroyed (194) 970 Value Destroyed (7789) 7789 Prototype IDs (89) 1780 Alien Tech Used (3) 600 Bonus (12140) 12140 TOTAL SCORE: 32879 Bonus ------- High Alert Combat Kills 1415 Follower Combat Kills 6076 Network Hubs Disabled 200 Met Data Miner 300 Met Imprinter 300 Was Imprinted 300 Met Zhirov 300 Met R17 at Cetus 500 Found Hidden Lab 3000 Friendly Fire -251 Cogmind --------- Core Integrity 0/1450 Matter 266/300 Energy 80/100 System Corruption 7% Temperature Cool (0) Movement Core (50) Location -2/Research Parts ------- > --- POWER (3) -------- (None) > --- PROPULSION (8) --- (None) > --- UTILITY (11) ----- Spectral Analyzer Experimental Terrain Scan Processor Experimental Targeting Computer Advanced Target Analyzer Graphene Brace Advanced Hacking Suite Advanced Hacking Suite > --- WEAPON (2) ------- (None) > --- INVENTORY (5) ---- Dimensional Node Initializer Transdimensional Reconstructor Core Expander Core Reset Matrix Warp Cannon Peak State ------------ > --- POWER ------------ Light Quantum Reactor Light Quantum Reactor Light Quantum Reactor > --- PROPULSION ------- Combat Linear Gravjet Combat Linear Gravjet Combat Linear Gravjet Combat Linear Gravjet Combat Linear Gravjet Combat Linear Gravjet Combat Linear Gravjet Combat Linear Gravjet > --- UTILITY ---------- Advanced Heat Sink Experimental Coolant Injector High-capacity Storage Unit Spectral Analyzer Experimental Signal Interpreter Experimental Terrain Scan Processor Experimental Targeting Computer Advanced Target Analyzer Advanced Cloaking Device Advanced Cloaking Device Graphene Brace > --- WEAPON ----------- Enhanced Nova Cannon Helical Railgun > --- INVENTORY -------- Particle Reactor Improved Linear Gravjet Zionite Biocell Zionite Biocell Array Experimental Matter Compressor Experimental Matter Compressor Experimental Powered Armor Advanced Hacking Suite Advanced Hacking Suite Quantum Router High-powered Tractor Beam Dimensional Node Initializer Transdimensional Reconstructor Transdimensional Reconstructor Core Expander Core Reset Matrix Potential Cannon Warp Cannon Guided Remote Datajack [Rating: 214] Favorites ----------- Power Deuterium Engine Engine Deuterium Engine Power Core Micro Fission Core Reactor Antimatter Reactor Propulsion Combat Linear Gravjet Treads Improved Heavy Siege Treads Leg Advanced Myomer Leg Wheel Compact Wheel Hover Unit Combat Linear Gravjet Flight Unit Cooled Nuclear Pulse Thruster Utility High-capacity Storage Unit Device Advanced Heat Sink Storage High-capacity Storage Unit Processor Experimental Optical Array Hackware Advanced Hacking Suite Protection Light Armor Plating Weapon Phasing Sabre Energy Gun Shock Rifle Energy Cannon Enhanced Nova Cannon Ballistic Gun Helical Railgun Ballistic Cannon Slug Cannon Launcher Guided EMP Blaster Special Weapon Remote Datajack Impact Weapon Makeshift Hammer Slashing Weapon Phasing Sabre Build | -11 -10 -9 -9 -7 -6 -6 -6 -6 -6 -6 -6 -5 -5 -5 -5 -5 -5 -4 -4 -4 -4 -4 -4 -3 -3 -3 -3 -2 ------- Run | Yrd Mat Mat Min Zio Pro Fac Was Fac Low Low Dat Pro Fac Ext Cet Arc Hub Fac Was Fac Upp Upp Zhi Pro Res Arm Lab Res Slots Evolved 16 | . . 2 . . . 6 . . . . . . 2 . . . . 2 . . . . . . 2 . . 2 Power 1 | . . . . . . 1 . . . . . . . . . . . . . . . . . . . . . . Propulsion 6 | . . . . . . 2 . . . . . . 2 . . . . 1 . . . . . . 1 . . . Utility 9 | . . 2 . . . 3 . . . . . . . . . . . 1 . . . . . . 1 . . 2 Weapon . | . . . . . . . . . . . . . . . . . . . . . . . . . . . . . Parts Attached 275 | 7 6 13 3 19 3 11 4 8 . . 5 1 10 32 6 1 1 4 1 27 . 7 3 . 22 49 5 27 Power 43 | 1 1 1 . 1 . 1 . . . . 2 . 2 5 2 . . . . 3 . 2 1 . 3 11 1 6 Engine 8 | 1 1 1 . 1 . 1 . . . . . . 1 2 . . . . . . . . . . . . . . Core 8 | . . . . . . . . . . . . . . 2 . . . . . 3 . . . . 1 2 . . Reactor 27 | . . . . . . . . . . . 2 . 1 1 2 . . . . . . 2 1 . 2 9 1 6 Propulsion 70 | 2 2 3 1 . 1 5 3 1 . . . 1 4 9 1 . . 3 . 11 . . . . 6 10 . 7 Treads 1 | . . . . . . . 1 . . . . . . . . . . . . . . . . . . . . . Leg 1 | . . . . . . . . . . . . . . . . . . 1 . . . . . . . . . . Wheel 9 | 2 2 3 1 . 1 . . . . . . . . . . . . . . . . . . . . . . . Hover 43 | . . . . . . 5 2 1 . . . 1 4 9 1 . . 2 . 2 . . . . 1 10 . 5 Flight 16 | . . . . . . . . . . . . . . . . . . . . 9 . . . . 5 . . 2 Utility 108 | 2 1 4 2 11 . 5 1 2 . . 1 . 2 15 3 . 1 1 . 11 . 3 2 . 8 21 1 11 Device 50 | 1 . 1 . 2 . 3 1 1 . . . . 2 4 . . 1 . . 9 . 3 1 . 5 10 . 6 Storage 14 | 1 1 . . 2 . . . . . . 1 . . 3 . . . 1 . . . . . . . 3 . 2 Processor 23 | . . 3 1 7 . 1 . . . . . . . 1 . . . . . 1 . . . . 3 6 . . Hackware 7 | . . . . . . . . 1 . . . . . 2 . . . . . . . . 1 . . . . 3 Protection 14 | . . . 1 . . 1 . . . . . . . 5 3 . . . . 1 . . . . . 2 1 . Artifact . | . . . . . . . . . . . . . . . . . . . . . . . . . . . . . Weapon 54 | 2 2 5 . 7 2 . . 5 . . 2 . 2 3 . 1 . . 1 2 . 2 . . 5 7 3 3 Energy Gun 19 | . 2 4 . 6 1 . . 2 . . . . . 2 . . . . . 1 . 1 . . . . . . Energy Cannon 12 | . . . . . . . . 1 . . 1 . 1 1 . . . . 1 . . . . . 1 3 2 1 Ballistic Gun 7 | 2 . 1 . . . . . . . . . . . . . . . . . . . . . . . 2 . 2 Ballistic Cannon 5 | . . . . . 1 . . . . . . . . . . . . . . . . . . . 3 1 . . Launcher 2 | . . . . . . . . 1 . . . . 1 . . . . . . . . . . . . . . . Special Weapon 4 | . . . . . . . . 1 . . . . . . . 1 . . . . . . . . . 1 1 . Impact Weapon 1 | . . . . . . . . . . . . . . . . . . . . . . 1 . . . . . . Slashing Weapon 4 | . . . . 1 . . . . . . 1 . . . . . . . . 1 . . . . 1 . . . Piercing Weapon . | . . . . . . . . . . . . . . . . . . . . . . . . . . . . . Special Melee Weapon . | . . . . . . . . . . . . . . . . . . . . . . . . . . . . . Unidentified Prototypes 51 | . . . . 6 . 2 . 4 1 . 2 . 4 6 3 . . 1 . 2 . . 2 . 2 8 4 4 Corrupted Parts 3 | . . . . . . . . . . . . . . . 1 . . . . 1 . 1 . . . . . . System Corruption 4 | . . . . . . . . . . . . . . . 1 . . . . 2 . 1 . . . . . . Parts Lost 95 | . 2 6 1 . 2 2 . . . . . . 2 16 . . 6 . . 12 1 . 5 2 1 8 . 29 Power 14 | . 1 1 . . . . . . . . . . . 3 . . 1 . . 3 . . 2 . . 1 . 2 Propulsion 32 | . 1 1 . . . 1 . . . . . . 2 6 . . 3 . . 3 . . 1 1 1 . . 12 Utility 36 | . . 1 1 . . 1 . . . . . . . 7 . . 2 . . 3 1 . 2 1 . 6 . 11 Weapon 13 | . . 3 . . 2 . . . . . . . . . . . . . . 3 . . . . . 1 . 4 Highest Loss Streak 9 | . 2 2 1 . 2 1 . . . . . . 1 9 . . 3 . . 5 1 . 5 2 1 3 . 8 To Critical Strikes . | . . . . . . . . . . . . . . . . . . . . . . . . . . . . . Average Backups 13 | 2 4 8 8 15 19 18 14 13 14 14 15 17 19 16 13 15 14 13 13 11 3 4 3 2 4 7 14 17 Power 1 | . . 1 1 . . . 1 2 2 2 1 1 1 . 2 3 3 3 3 2 . 1 . . . . . 1 Propulsion 1 | . . . 1 1 . 1 2 3 3 2 2 4 3 1 . 1 . . . 1 . . . . . . 1 . Utility 7 | . 1 2 4 9 15 14 9 7 7 7 8 9 10 10 8 9 8 7 8 5 3 3 2 1 1 2 5 7 Weapon 2 | 1 1 4 2 3 1 1 . 1 2 2 2 2 2 2 1 1 1 1 1 . . . . . . 1 1 2 Tool/Special . | . . . . . . . . . . . . . . . . . . . . . . . . . . . . . Unused Backups 75 | . . 6 . 6 . 6 2 4 . 1 . . 4 9 3 . 1 . . 7 . . 1 . 5 5 5 10 Power 11 | . . 2 . . . 1 . . . . . . . . 2 . . . . 3 . . . . . . . 3 Propulsion 3 | . . . . . . . . . . . . . . 1 . . . . . . . . . . 2 . . . Utility 39 | . . 1 . 3 . 4 1 1 . 1 . . 3 7 1 . 1 . . 4 . . 1 . 2 2 4 3 Weapon 18 | . . 3 . 3 . 1 1 3 . . . . 1 1 . . . . . . . . . . 1 3 1 . Tool/Special 4 | . . . . . . . . . . . . . . . . . . . . . . . . . . . . 4 Average Slot Usage (%) 89 | . 92 97 91 96 99 80 92 95 94 95 95 100 89 80 81 77 67 44 59 74 77 86 86 74 77 96 96 82 Engine 6 | . 11 10 11 11 11 7 13 13 12 13 10 6 6 2 3 . . . . . . . . . . . . . Reactor 4 | . . . . . . . . . . . 4 12 3 6 3 11 7 1 5 4 5 8 9 5 5 10 13 8 Wheel 7 | . 23 21 22 22 22 6 . . . . . . . . . . . . . . . . . . . . . . Hover 17 | . . . . . . 9 25 26 25 25 25 25 32 31 25 22 16 12 20 17 . . . . 1 34 36 25 Flight 1 | . . . . . . . . . . . . . . . . . . . . 5 30 30 29 24 20 . . . Device 13 | . 14 10 . 4 10 12 18 20 18 18 17 18 15 10 12 16 15 10 10 13 26 29 27 19 25 19 12 15 Storage 7 | . 14 11 11 11 11 6 6 6 6 6 6 6 5 8 6 11 11 10 10 12 5 5 5 5 2 . 4 4 Processor 14 | . . 21 18 19 22 19 20 20 18 18 18 18 16 7 . . . . . 2 5 5 5 5 8 16 22 20 Protection 2 | . . . 6 6 . 5 1 . . . . . . 2 5 5 4 . . 4 . . . . . . . . Energy Gun 6 | . 17 19 22 21 13 4 . . . . . . . . . . . . . . . . . . . . . . Special Weapon 1 | . . . . . . . . 2 6 6 2 6 1 . . . . . . 2 . . . . . . . . Slashing Weapon 1 | . . . . . . 1 6 6 6 6 9 6 4 . . . . . . . 5 5 5 5 4 1 . . Peak Build Rating 214 | 7 8 18 20 48 51 83 88 90 88 91 100 101 112 117 119 120 120 103 104 147 115 124 135 107 145 193 196 214 Average Rating 90 | 5 6 15 17 31 48 65 84 85 87 88 91 100 103 103 108 118 102 78 103 120 104 119 120 104 127 167 182 180 On Entrance 88 | . 7 8 17 17 48 51 75 85 88 88 90 100 101 109 104 119 120 72 95 104 115 102 122 106 90 142 190 195 Avg Prop Armor Cover (%) 4 | . . . . . . . . . . . . . . . . . . . . 4 . . . . 4 4 . 3 Naked Turns . | . . . . . . . . . . . . . . . . . . . . . . . . . . . . . Heaviest Build 118 | 11 13 26 28 61 62 67 45 48 45 47 70 90 73 98 79 81 81 53 66 76 35 44 45 33 59 118 112 111 Greatest Support 112 | 32 32 32 26 26 26 45 48 59 48 48 48 48 75 81 83 83 83 74 74 86 58 56 44 52 65 112 112 112 Greatest Overweight (x) 16 | . . . 1 2 2 4 1 . . . 1 1 1 1 1 . . . . 2 . . 1 . . 2 . 16 Average Overweight (x) . | . . . . 1 2 . . . . . . 1 . . . . . . . . . . . . . . . . Largest Inventory Capacity 20 | 8 10 10 10 20 20 20 15 15 15 15 15 20 20 20 15 15 15 15 15 15 5 5 5 5 5 20 20 20 Average Capacity 14 | 7 8 9 10 17 20 18 15 15 15 15 15 18 20 18 15 15 15 15 15 13 5 5 5 5 5 8 20 19 Most Carried 20 | 5 7 10 10 20 20 20 15 15 15 15 15 18 20 20 15 15 15 15 15 15 5 5 5 3 5 20 20 20 Average Carried 13 | 2 4 8 8 15 18 17 14 14 15 14 14 17 19 17 14 14 14 14 15 12 4 4 4 2 4 7 14 19 Final Capacity 20 | 8 8 10 10 20 20 15 15 15 15 15 15 20 20 15 15 15 15 15 15 5 5 5 5 5 5 20 20 5 Final Carried 20 | 2 6 8 8 19 20 14 15 15 15 15 15 18 20 15 15 15 15 15 15 5 5 5 2 3 5 19 20 5 Class Distribution -------------------- 44% | Mutant 16% | Scavenger-Mutant 11% | Scout 8% | Messiah-Mutant 4% | Scavenger-Sprinter 4% | Assassin Dominant Class ---------------- Mutant | -10/Materials Mutant | -9/Materials Mutant | -9/Mines Mutant | -7/Zion Mutant | -6/Proximity Caves Derelict-Skirmisher | -6/Factory Mutant | -6/Waste Scout | -6/Factory Scout | -6/Lower Caves Scout | -6/Lower Caves Assassin | -6/Data Miner Assassin | -5/Proximity Caves Scout | -5/Factory Messiah-Mutant | -5/Extension Scavenger-Mutant | -5/Cetus Messiah-Mutant | -5/Archives Scavenger-Mutant | -5/Hub_04(d) Scavenger-Mutant | -4/Factory Scavenger-Mutant | -4/Waste Scavenger-Mutant | -4/Factory Scavenger-Sprinter | -4/Upper Caves Scavenger-Sprinter | -4/Upper Caves Scavenger-Sprinter | -4/Zhirov Scavenger-Sprinter | -3/Proximity Caves Sprinter | -3/Research Mutant | -3/Armory Mutant | -3/Lab Scavenger-Mutant | -2/Research Resources | -11 -10 -9 -9 -7 -6 -6 -6 -6 -6 -6 -6 -5 -5 -5 -5 -5 -5 -4 -4 -4 -4 -4 -4 -3 -3 -3 -3 -2 ----------- Run | Yrd Mat Mat Min Zio Pro Fac Was Fac Low Low Dat Pro Fac Ext Cet Arc Hub Fac Was Fac Upp Upp Zhi Pro Res Arm Lab Res Matter Collected 7319 | 316 104 153 20 230 111 144 179 125 42 35 96 49 187 1286 280 . 2 . . 685 . 119 45 . 306 1209 492 1104 Remotely . | . . . . . . . . . . . . . . . . . . . . . . . . . . . . . Salvage Created 10418 | 201 480 642 553 . 119 393 . 511 . 135 . . 440 2421 458 655 . . . 330 . . . . 485 942 . 1653 Parts 481 | 14 35 43 27 . 5 17 . 16 . 5 . . 22 112 17 20 . . . 7 . . . . 4 51 . 86 Haulers Intercepted 9 | . 1 1 . . . 1 . 1 . . . . 1 2 . . . . . 1 . . . . 1 . . . Recyclers Shooed 8 | . 2 . . . . 2 . 1 . . . . . 2 . . . . . . . . . . . . . 1 Parts Field Recycled . | . . . . . . . . . . . . . . . . . . . . . . . . . . . . . Retrieved Matter . | . . . . . . . . . . . . . . . . . . . . . . . . . . . . . Parts Self-Destructed 55 | . . . . 1 14 . . . 2 4 . 32 . . . . . . . . 2 . . . . . . . Prevented 7 | . . . . . 7 . . . . . . . . . . . . . . . . . . . . . . . Parts Restored . | . . . . . . . . . . . . . . . . . . . . . . . . . . . . . Kills | -11 -10 -9 -9 -7 -6 -6 -6 -6 -6 -6 -6 -5 -5 -5 -5 -5 -5 -4 -4 -4 -4 -4 -4 -3 -3 -3 -3 -2 ------- Run | Yrd Mat Mat Min Zio Pro Fac Was Fac Low Low Dat Pro Fac Ext Cet Arc Hub Fac Was Fac Upp Upp Zhi Pro Res Arm Lab Res Combat Hostiles Destroyed 117 | . 4 14 8 . 2 4 . . . 1 . . 3 21 5 10 . . . 6 . . . . 4 14 . 21 Melee 10 | . . . . . . . . . . 1 . . 3 1 . . . . . . . . . . 1 3 . 1 Guns 37 | . 4 14 6 . 1 1 . . . . . . . . . . . . . . . . . . . 5 . 6 Cannons 20 | . . . . . 1 3 . . . . . . . . . . . . . 1 . . . . . 6 . 9 AOE 30 | . . . 1 . . . . . . . . . . 15 . 6 . . . 4 . . . . . . . 4 Classes Destroyed 19 | 2 6 3 1 . . . . 1 . . . . 1 1 . . . . . . . . . . . 4 . . Worker 15 | . 2 . 1 . . 1 . 1 . . . . 2 7 . . . . . . . . . . 1 . . . Builder 11 | . . . . . . . . 2 . . . . 1 5 . . . . . . . . . . . . . 3 Tunneler 10 | 5 1 . 3 . . . . . . . . . . . . . . . . . . . . . . . . 1 Hauler 9 | . 1 1 . . . 1 . 1 . . . . 1 2 . . . . . 1 . . . . 1 . . . Recycler 15 | 1 1 1 2 . . 1 . 3 . . . . 1 4 . . . . . . . . . . 1 . . . Mechanic 2 | . 1 . . . . . . . . . . . 1 . . . . . . . . . . . . . . . Operator 2 | . 1 . . . . . . . . . . . . . . . . . . . . . . . . 1 . . Watcher 11 | . 3 2 . . . . . . . . . . . 1 2 . . . . . . . . . 1 1 . 1 Swarmer 21 | . . 6 3 . . . . . . . . . 2 . . . . . . 4 . . . . 2 2 . 2 Cutter 2 | . . . . . . . . . . . . . . . . . . . . . . . . . . 2 . . Grunt 49 | . 4 4 3 . 1 4 . . . 1 . . . 12 . 10 . . . 1 . . . . 1 3 . 5 Brawler 1 | . . . 1 . . . . . . . . . . . . . . . . . . . . . . . . . Duelist 3 | . . 1 1 . . . . . . . . . . . . . . . . . . . . . . . . 1 Protector 1 | . . . . . . . . . . . . . . . . . . . . . . . . . . 1 . . Sentry 14 | . . 3 . . 1 . . . . . . . . 3 . . . . . 1 . . . . 1 2 . 3 Specialist 2 | . . . . . . . . . . . . . . . . . . . . . . . . . . 2 . . Hunter 9 | . . . . . . . . . . . . . 1 4 . . . . . . . . . . . . . 4 Programmer 8 | . . . . . . . . . . . . . . . . . . . . . . . . . . 3 . 5 Behemoth 2 | . . . . . . . . . . . . . . 1 . . . . . . . . . . . . . 1 Cetus Guard 5 | . . . . . . . . . . . . . . . 5 . . . . . . . . . . . . . Thug 1 | . . . . . . . . . . . . . . 1 . . . . . . . . . . . . . . Savage 1 | . . . . . . . . . . 1 . . . . . . . . . . . . . . . . . . Best Kill Streak 10 | 3 5 4 4 . 2 3 . 2 . 1 . . 4 10 4 10 . . . 4 . . . . 3 5 . 8 Combat Bots Only 10 | . 2 4 3 . 2 2 . . . 1 . . 2 9 3 10 . . . 4 . . . . 2 5 . 7 Max Kills in Single Turn 6 | 1 2 1 1 . 1 1 . 1 . 1 . . 1 4 2 4 . . . 2 . . . . 1 1 . 6 Gunslinging . | . . . . . . . . . . . . . . . . . . . . . . . . . . . . . Exploded 4 | . . . 1 . . . . . . . . . . 3 . 3 . . . 2 . . . . . . . 4 Melee 1 | . . . . . . . . . . 1 . . 1 1 . . . . . . . . . . 1 1 . 1 Uniques/NPCs Destroyed . | . . . . . . . . . . . . . . . . . . . . . . . . . . . . . Combat | -11 -10 -9 -9 -7 -6 -6 -6 -6 -6 -6 -6 -5 -5 -5 -5 -5 -5 -4 -4 -4 -4 -4 -4 -3 -3 -3 -3 -2 -------- Run | Yrd Mat Mat Min Zio Pro Fac Was Fac Low Low Dat Pro Fac Ext Cet Arc Hub Fac Was Fac Upp Upp Zhi Pro Res Arm Lab Res Hostile Shots Fired 1249 | . 23 70 19 . 31 23 . 13 1 . . 5 15 96 13 1 63 . . 195 12 4 . 20 114 114 . 417 Missed 549 | . 3 22 9 . 11 7 . 8 1 . . 1 4 43 4 1 26 . . 88 11 3 . 11 82 42 . 172 Hits 700 | . 20 48 10 . 20 16 . 5 . . . 4 11 53 9 . 37 . . 107 1 1 . 9 32 72 . 245 Melee 11 | . . . 3 . . . . . . . . . 1 2 . . . . . 3 . . . . . 1 . 1 Projectile 689 | . 20 48 7 . 20 16 . 5 . . . 4 10 51 9 . 37 . . 104 1 1 . 9 32 71 . 244 AOE 5 | . . . . . . . . . . . . . . . . . 2 . . 1 . . . . . 2 . . Critical Strikes 33 | . 1 . . . . 1 . . . . . 1 1 5 1 . 1 . . 5 . . . . . 7 . 10 Actively Blocked 14 | . . . . . . . . . . . . . . 3 1 . . . . . . . . . . . . 10 Part Disruptions 2 | . . . . . . . . . . . . . . . . . . . . . . . . . . 1 . 1 Damage Taken 16542 | . 330 620 178 . 253 422 32 42 . 19 . 80 238 1615 251 . 837 . . 2142 76 20 460 200 457 1962 . 6308 Core 3177 | . 104 165 14 . 43 95 . . . . . 22 34 237 61 . 205 . . 216 12 20 179 75 87 225 . 1383 Absorbed by Shields 400 | . . . . . . . . . . . . . . . . . 26 . . . . . . . 160 191 . 23 Redirected to Shielding 380 | . . . . . . . . . . . . . . 202 82 . 96 . . . . . . . . . . . Regen/Repaired (Parts) 381 | . . . . . . . 289 5 . 14 . 36 37 . . . . . . . . . . . . . . . Core Remaining (%) 66 | 100 58 . . . 44 . . . . . . 86 . . . . 46 . . . . . . 56 . . 76 . Volleys Fired 633 | 28 46 51 24 . 12 21 . 1 . . . . . 111 15 16 1 . 4 44 . . . . . 102 58 99 Largest 2 | 2 2 2 2 . 2 2 . 1 . . . . . 2 1 1 1 . 1 2 . . . . . 2 1 2 Hottest 210 | 40 105 105 100 . 150 121 . 5 . . . . . 120 50 50 50 . 90 210 . . . . . 158 120 200 Shots Fired 893 | 56 91 98 48 . 22 42 . 1 . . . . . 112 15 16 1 . 4 46 . . . . . 134 59 148 Gun 468 | 56 91 98 48 . 16 21 . . . . . . . 2 . . . . . . . . . . . 51 12 73 Cannon 293 | . . . . . 6 21 . . . . . . . 45 . . . . 4 42 . . . . . 53 47 75 Launcher 81 | . . . . . . . . . . . . . . 48 15 13 1 . . 4 . . . . . . . . Special 51 | . . . . . . . . 1 . . . . . 17 . 3 . . . . . . . . . 30 . . Kinetic 295 | 56 34 18 . . 6 21 . . . . . . . . . . . . . . . . . . . 75 12 73 Thermal 379 | . 57 43 . . 16 21 . . . . . . . 45 . . . . 4 42 . . . . . 29 47 75 Explosive . | . . . . . . . . . . . . . . . . . . . . . . . . . . . . . Electromagnetic 167 | . . 37 48 . . . . . . . . . . 49 15 13 1 . . 4 . . . . . . . . Phasic 1 | . . . . . . . . . . . . . . 1 . . . . . . . . . . . . . . Robot Hit Streak 17 | 8 16 9 6 . 6 6 . 1 . . . . . 12 . 8 . . . 11 . . . . . 17 . 10 Robot Miss Streak 8 | 4 4 4 3 . 6 8 . . . . . . . 1 . . . . . 2 . . . . . 5 . 6 Penetration Max 1 | . . . . . . . . . . . . . . . . . . . . . . . . . . 1 . 1 Secondary Targets 5 | . 1 4 . . . . . . . . . . . . . . . . . . . . . . . . . . Max Gunslinging Chain 1 | . 1 1 . . . . . . . . . . . . . . . . . . . . . . . . . . Shots Hit Robots 501 | 31 57 64 30 . 10 22 . 13 1 3 1 . 12 55 . 3 . . . 13 . . . . 15 87 . 84 Core Hits 332 | 11 36 26 15 . 7 15 . 5 . 2 . . 6 79 19 25 . . . 11 . . . . 5 29 . 41 Critical Kills 10 | . . . . . . 1 . . . . . . . . . . . . . . . . . . 1 6 . 2 Critical Parts Destroyed 19 | . . . . . . . . . . . . . . . . . . . . . . . . . 3 12 . 4 Critical Strikes 40 | . 1 . 2 . 1 5 . . . . . . 1 . . . . . . . . . . . 4 20 . 6 Burn 6 | . 1 . . . 1 4 . . . . . . . . . . . . . . . . . . . . . . Meltdown 1 | . . . . . . . . . . . . . . . . . . . . . . . . . . . . 1 Destroy 25 | . . . . . . 1 . . . . . . . . . . . . . . . . . . . 19 . 5 Corrupt 2 | . . . 2 . . . . . . . . . . . . . . . . . . . . . . . . . Smash 4 | . . . . . . . . . . . . . . . . . . . . . . . . . 4 . . . Sever 2 | . . . . . . . . . . . . . 1 . . . . . . . . . . . . 1 . . Melee Attacks 138 | . . . . 1 . 2 . 19 4 4 2 . 33 7 . . . . . . 1 . 1 2 42 20 . . Impact 13 | . . . . . . . . . . . . . . . . . . . . . . . . 1 12 . . . Slashing 125 | . . . . 1 . 2 . 19 4 4 2 . 33 7 . . . . . . 1 . 1 1 30 20 . . Piercing . | . . . . . . . . . . . . . . . . . . . . . . . . . . . . . Sneak Attacks 26 | . . . . . . 1 . 8 . 2 1 . 8 1 . . . . . . . . . . 4 1 . . Combat Hostiles . | . . . . . . . . . . . . . . . . . . . . . . . . . . . . . Follow-up Attacks 5 | . . . . . . . . . . . . . . . . . . . . . . . . . 5 . . . Damage Inflicted 20879 | 278 705 930 603 . 247 608 . 974 37 176 81 . 849 4705 951 1223 73 . . 675 . . . . 847 2257 . 4660 Guns 5469 | 278 583 890 497 . 217 251 . . . . . . . 61 . . . . . . . . . . . 1098 . 1594 Cannons 4272 | . . . . . 30 272 . . . . . . . 867 . . . . . 449 . . . . . 706 . 1948 Explosions 7266 | . 122 40 106 . . . . . . . . . . 3545 951 1223 40 . . 226 . . . . . . . 1013 Melee 3697 | . . . . . . 85 . 974 37 176 81 . 849 210 . . . . . . . . . . 832 453 . . Ramming 175 | . . . . . . . . . . . . . . 22 . . 33 . . . . . . . 15 . . 105 Kinetic 3955 | 278 193 104 . . 30 272 . . . . . . . . . . . . . . . . . . . 1484 . 1594 Thermal 7116 | . 390 434 106 . 217 251 . . . . . . . 1911 15 285 . . . 449 . . . . . 320 . 2738 Explosive 267 | . . . . . . . . . . . . . . . . . . . . 44 . . . . . . . 223 Electromagnetic 5636 | . 122 392 497 . . . . . . . . . . 2529 936 938 40 . . 182 . . . . . . . . Impact 216 | . . . . . . . . . . . . . . . . . . . . . . . . . 216 . . . Slashing 3481 | . . . . . . 85 . 974 37 176 81 . 849 210 . . . . . . . . . . 616 453 . . Piercing . | . . . . . . . . . . . . . . . . . . . . . . . . . . . . . Phasic 33 | . . . . . . . . . . . . . . 33 . . . . . . . . . . . . . . Highest Corruption 24 | . . . . 3 . 1 1 5 5 5 5 5 . 21 22 22 24 . 7 12 12 13 13 13 . 3 3 7 Average Corruption 7 | . . . . 3 . 1 1 2 5 5 5 5 . 20 21 22 22 . 7 8 12 12 13 13 . 2 3 3 Corruption Purged . | . . . . . . . . . . . . . . . . . . . . . . . . . . . . . Corruption Blocked . | . . . . . . . . . . . . . . . . . . . . . . . . . . . . . Effects 172 | . . . . . . . 4 7 11 8 1 11 . 18 12 3 11 . 2 24 2 2 5 12 . 11 16 12 Message Errors 45 | . . . . . . . 1 2 7 2 . 1 . 2 8 . 2 . . 4 2 1 2 4 . 4 2 1 Matter Fused 45 | . . . . . . . 2 1 2 2 . 3 . 5 . 2 3 . 1 5 . . . 3 . 3 7 6 Heat Flow Errors 15 | . . . . . . . 1 1 1 . 1 . . . 1 . 1 . 1 3 . . 1 2 . 2 . . Energy Discharges 24 | . . . . . . . . . 1 4 . 1 . 4 1 1 2 . . 4 . 1 1 . . . 2 2 Parts Rejected 3 | . . . . . . . . . . . . . . 2 . . . . . . . . . . . . . 1 Data Loss (minor) 17 | . . . . . . . . 2 . . . 2 . 2 1 . . . . 1 . . 1 1 . 2 4 1 Data Loss (major) 5 | . . . . . . . . 1 . . . 3 . . . . . . . . . . . 1 . . . . Misfires 2 | . . . . . . . . . . . . . . . . . . . . 1 . . . . . . 1 . Alerts 4 | . . . . . . . . . . . . 1 . 2 1 . . . . . . . . . . . . . Misdirections 11 | . . . . . . . . . . . . . . 1 . . 3 . . 6 . . . 1 . . . . Weapon Failures 1 | . . . . . . . . . . . . . . . . . . . . . . . . . . . . 1 Overload Shots . | . . . . . . . . . . . . . . . . . . . . . . . . . . . . . Overflow Damage 1250 | . . 16 12 . . 45 . 341 . . 21 . 205 142 11 . . . . . . . . . 130 123 . 204 Projectiles 183 | . . . . . . . . . . . . . . 47 . . . . . . . . . . . . . 136 Explosions 138 | . . 16 12 . . . . . . . . . . 31 11 . . . . . . . . . . . . 68 Melee 929 | . . . . . . 45 . 341 . . 21 . 205 64 . . . . . . . . . . 130 123 . . Knockbacks 8 | . . . . . . 3 . . . . . . . . . . . . . . . . . . 1 3 . 1 Impact 2 | . . . . . . . . . . . . . . . . . . . . . . . . . 1 . . 1 Kinetic 6 | . . . . . . 3 . . . . . . . . . . . . . . . . . . . 3 . . Secondary . | . . . . . . . . . . . . . . . . . . . . . . . . . . . . . Self-Inflicted Damage 325 | . 32 37 36 . . . . . . . . . . 82 . . 16 . . 65 . . . . 6 . . 51 Shots 7 | . 1 1 2 . . . . . . . . . . 2 . . . . . 1 . . . . . . . . Rammed 14 | . . . . . . . . . . . . . . 1 . . 3 . . . . . . . 3 . . 7 Targets Rammed 14 | . . . . . . . . . . . . . . 1 . . 3 . . . . . . . 3 . . 7 Kicked . | . . . . . . . . . . . . . . . . . . . . . . . . . . . . . Crushed . | . . . . . . . . . . . . . . . . . . . . . . . . . . . . . Highest Temperature 495 | . 195 337 203 420 118 42 129 237 84 . 131 18 131 208 159 212 89 6 464 495 245 138 240 156 . 252 242 19 Average Temperature 71 | . 64 89 70 211 48 25 71 120 47 . 68 13 30 46 38 105 46 5 158 172 99 65 122 62 . 35 50 7 Received Heat Transfer 1860 | . 186 141 12 . 75 162 . 9 . 9 . 27 18 300 18 . 108 . . 291 . . . 21 83 103 . 297 Effects 16 | . . . . 2 . . . . . . . . . . . . . . 2 12 . . . . . . . . Shutdowns 8 | . . . . . . . . . . . . . . . . . . . 1 7 . . . . . . . . Energy Bleed 3 | . . . . . . . . . . . . . . . . . . . 1 2 . . . . . . . . Interference 3 | . . . . 2 . . . . . . . . . . . . . . . 1 . . . . . . . . Matter Decay 1 | . . . . . . . . . . . . . . . . . . . . 1 . . . . . . . . Short Circuit 1 | . . . . . . . . . . . . . . . . . . . . 1 . . . . . . . . Siege Activations . | . . . . . . . . . . . . . . . . . . . . . . . . . . . . . Martial Activations . | . . . . . . . . . . . . . . . . . . . . . . . . . . . . . Shielding Activations . | . . . . . . . . . . . . . . . . . . . . . . . . . . . . . Robots Disrupted 1 | . . . . . . . . . . . . . . 1 . . . . . . . . . . . . . . Combat Hostiles 1 | . . . . . . . . . . . . . . 1 . . . . . . . . . . . . . . Robots Corrupted 18 | . . . 1 . . . . . . . . . . 5 5 4 . . . . . . . . 3 . . . Combat Hostiles 18 | . . . 1 . . . . . . . . . . 5 5 4 . . . . . . . . 3 . . . Parts Fried 21 | . . 1 . . . . . . . . . . . 12 2 3 . . . 1 . . . . . . . 2 Impact Corruptions 4 | . . . . . . . . . . . . . . . . . . . . . . . . . 4 . . . Robots Melted 2 | . . . . . . . . . . . . . . . . . . . . 1 . . . . . . . 1 Combat Hostiles 2 | . . . . . . . . . . . . . . . . . . . . 1 . . . . . . . 1 Parts Melted 14 | . 1 2 . . . . . . . . . . . . . . . . . . . . . . 3 2 . 6 Heat Transferred 6987 | . 983 1053 100 . 444 703 . . . . . . . 887 50 300 . . . 37 . . . . . 296 . 2134 Parts Sabotaged . | . . . . . . . . . . . . . . . . . . . . . . . . . . . . . Parts Stolen . | . . . . . . . . . . . . . . . . . . . . . . . . . . . . . Parts Stripped . | . . . . . . . . . . . . . . . . . . . . . . . . . . . . . Power Chain Reactions 21 | . 2 1 2 . . . . . . . . . . 13 1 2 . . . . . . . . . . . . Alert | -11 -10 -9 -9 -7 -6 -6 -6 -6 -6 -6 -6 -5 -5 -5 -5 -5 -5 -4 -4 -4 -4 -4 -4 -3 -3 -3 -3 -2 ------- Run | Yrd Mat Mat Min Zio Pro Fac Was Fac Low Low Dat Pro Fac Ext Cet Arc Hub Fac Was Fac Upp Upp Zhi Pro Res Arm Lab Res Maximum Alert Level 4 | . . . . . . . . 3 . . . . 4 4 3 2 1 . . 2 . . . . 1 3 . 4 Low Security (%) 43 | 100 100 100 100 . . 100 100 34 . . . . . . . . 42 100 100 73 . . . . 53 14 . 14 Level 1 12 | . . . . . . . . 23 . . . . . 12 . 37 57 . . 23 . . . . 46 28 . 13 Level 2 24 | . . . . . . . . 16 . . . . 34 66 6 62 . . . 2 . . . . . 55 . 26 Level 3 14 | . . . . . . . . 25 . . . . 41 13 93 . . . . . . . . . . 2 . 41 Level 4 3 | . . . . . . . . . . . . . 24 7 . . . . . . . . . . . . . 3 Level 5 . | . . . . . . . . . . . . . . . . . . . . . . . . . . . . . High Security . | . . . . . . . . . . . . . . . . . . . . . . . . . . . . . Max Security . | . . . . . . . . . . . . . . . . . . . . . . . . . . . . . Peak Influence 1217 | 10 150 150 91 . . 86 23 881 . . . . 1217 1136 835 598 327 108 27 437 . . . . 360 725 . 1178 Initial 627 | . . 49 40 . . . 13 . . . . . 513 573 627 314 202 108 23 . . . . . 67 163 . . Average 369 | 1 48 84 45 . . 43 3 407 . . . . 877 599 762 480 212 88 16 111 . . . . 154 405 . 602 Influence Increases 12391 | 30 313 416 271 . 266 128 31 1078 235 140 . 569 1422 1619 308 294 340 . 8 869 105 . . 120 616 1249 . 1964 Destroy 0b10 Robot/C 5180 | . 80 280 180 . 180 80 . 380 100 60 . 260 460 840 160 200 80 . . 240 . . . . 240 540 . 820 Destroy 0b10 Robot/NC 440 | 30 50 20 30 . . 15 . 55 . . . 10 50 100 10 . . . . 10 . . . . 20 15 . 25 Destroy Leader 960 | . 28 76 30 . 30 12 . 104 20 10 . 30 86 122 . . 30 . . 42 . . . . 54 114 . 172 Allied During Kill 2354 | . . . 4 . 56 . . 430 115 70 . 269 389 293 54 50 42 . . 52 . . . . 109 185 . 236 Successful Hack 31 | . 5 5 . . . . . 7 . . . . . 14 . . . . . . . . . . . . . . Select Force Hacks 30 | . 30 . . . . . . . . . . . . . . . . . . . . . . . . . . . Disable Machine 645 | . 90 15 15 . . 15 . 45 . . . . 60 60 . 15 30 . . 45 . . . . 15 165 . 75 Anti-Garrison Action 150 | . . . . . . . . . . . . . . . . . . . . . . . . . . . . 150 Destroy Structure 711 | . . 5 12 . . 6 31 57 . . . . 32 130 24 14 8 . 8 90 . . . . 28 50 . 216 Advance Influence 300 | . . . . . . . . . . . . . 300 . . . . . . . . . . . . . . . Partial Spotted 105 | . . . . . . . . . . . . . . 30 . . . . . . . . . . . 30 . 45 Lose Combat Pursuer 1485 | . 30 15 . . . . . . . . . . 45 30 60 15 150 . . 390 105 . . 120 150 150 . 225 Influence Decreases 11259 | 30 195 429 333 43 266 90 69 235 606 271 341 230 590 1670 643 501 696 154 75 491 181 109 194 20 403 934 628 832 Entered New Map 4375 | . . 69 65 43 . . 25 . 312 91 341 . 126 598 493 471 376 114 45 1 141 59 194 . 33 150 628 . Time Decay 4220 | 30 195 300 258 . 181 70 44 175 214 160 . 230 334 522 130 30 80 40 30 201 30 50 . 20 170 374 . 352 Lost Part 840 | . . 60 10 . . 20 . . . . . . 20 160 . . 60 . . 120 10 . . . 10 80 . 290 Lost Ally 1824 | . . . . . 85 . . 60 80 20 . . 110 390 20 . 180 . . 169 . . . . 190 330 . 190 Squads Dispatched 58 | . 3 1 . . . 1 . 6 . . . . 4 7 . . 5 . . 8 . . . . 2 9 . 12 Investigation 8 | . 2 . . . . . . 1 . . . . . 1 . . . . . 2 . . . . . 2 . . Extermination 10 | . . . . . . . . 1 . . . . 1 . . . . . . 2 . . . . 1 3 . 2 Reinforcement 30 | . 1 1 . . . 1 . 3 . . . . 3 5 . . 5 . . 3 . . . . 1 3 . 4 Assault 6 | . . . . . . . . 1 . . . . . 1 . . . . . . . . . . . 1 . 3 Garrison 4 | . . . . . . . . . . . . . . . . . . . . 1 . . . . . . . 3 Intercept . | . . . . . . . . . . . . . . . . . . . . . . . . . . . . . Searches Triggered . | . . . . . . . . . . . . . . . . . . . . . . . . . . . . . Construction Impeded 8 | . . . . . . . . 1 . . . . 2 4 . . 1 . . . . . . . . . . . Haulers Reinforced 2 | . . . . . . 1 . . . . . . 1 . . . . . . . . . . . . . . . Active Scanning Responses . | . . . . . . . . . . . . . . . . . . . . . . . . . . . . . Cargo Convoy Interrupts . | . . . . . . . . . . . . . . . . . . . . . . . . . . . . . Stealth | -11 -10 -9 -9 -7 -6 -6 -6 -6 -6 -6 -6 -5 -5 -5 -5 -5 -5 -4 -4 -4 -4 -4 -4 -3 -3 -3 -3 -2 --------- Run | Yrd Mat Mat Min Zio Pro Fac Was Fac Low Low Dat Pro Fac Ext Cet Arc Hub Fac Was Fac Upp Upp Zhi Pro Res Arm Lab Res Distress Signals 25 | . 2 . . . . . . . . . . . 4 1 2 . 3 . . 5 . . . . 1 3 . 4 Communications Jammed . | . . . . . . . . . . . . . . . . . . . . . . . . . . . . . Distress Signals . | . . . . . . . . . . . . . . . . . . . . . . . . . . . . . Times Spotted 458 | . 15 19 9 . 9 5 2 15 3 3 4 13 27 51 9 5 21 . 6 53 11 6 . 11 31 42 . 88 Peak Tracking Total 17 | . 4 4 3 . 3 2 1 3 4 3 3 5 4 11 5 10 13 1 6 14 7 7 . 11 10 5 . 17 Tactical Retreats 42 | . 2 1 . . . . . . . . . . 1 2 3 1 3 . . 8 2 . . 2 6 3 . 8 Traps | -11 -10 -9 -9 -7 -6 -6 -6 -6 -6 -6 -6 -5 -5 -5 -5 -5 -5 -4 -4 -4 -4 -4 -4 -3 -3 -3 -3 -2 ------- Run | Yrd Mat Mat Min Zio Pro Fac Was Fac Low Low Dat Pro Fac Ext Cet Arc Hub Fac Was Fac Upp Upp Zhi Pro Res Arm Lab Res Traps Triggered 18 | . 1 1 . . . 2 . 1 . . . . . 2 . . 2 1 . 2 1 . . . . 4 . 1 Indirectly . | . . . . . . . . . . . . . . . . . . . . . . . . . . . . . Trap Hack Attempts . | . . . . . . . . . . . . . . . . . . . . . . . . . . . . . Triggered . | . . . . . . . . . . . . . . . . . . . . . . . . . . . . . Disarmed . | . . . . . . . . . . . . . . . . . . . . . . . . . . . . . Reprogrammed . | . . . . . . . . . . . . . . . . . . . . . . . . . . . . . Reused . | . . . . . . . . . . . . . . . . . . . . . . . . . . . . . Traps Extracted . | . . . . . . . . . . . . . . . . . . . . . . . . . . . . . Installed . | . . . . . . . . . . . . . . . . . . . . . . . . . . . . . Triggered . | . . . . . . . . . . . . . . . . . . . . . . . . . . . . . Machines | -11 -10 -9 -9 -7 -6 -6 -6 -6 -6 -6 -6 -5 -5 -5 -5 -5 -5 -4 -4 -4 -4 -4 -4 -3 -3 -3 -3 -2 ---------- Run | Yrd Mat Mat Min Zio Pro Fac Was Fac Low Low Dat Pro Fac Ext Cet Arc Hub Fac Was Fac Upp Upp Zhi Pro Res Arm Lab Res Machines Disabled 59 | . 6 1 1 . . 1 . 3 . . 1 . 4 5 . 1 2 . . 3 . . 1 1 1 11 11 6 Max in Single Turn 2 | . 2 1 1 . . 1 . 1 . . 1 . 1 1 . 1 . . . 1 . . 1 1 1 1 2 1 Garrison Access 1 | . . . . . . . . . . . . . . . . . . . . . . . . . . . . 1 Network Hub 1 | . . . . . . . . . . . . . . . . . 1 . . . . . . . . . . . Energy Cycler 1 | . . . . . . . . . . . . . . 1 . . . . . . . . . . . . . . Machines Repaired . | . . . . . . . . . . . . . . . . . . . . . . . . . . . . . Machines Dismantled . | . . . . . . . . . . . . . . . . . . . . . . . . . . . . . Machines Sabotaged . | . . . . . . . . . . . . . . . . . . . . . . . . . . . . . Overloaded Fab Kills . | . . . . . . . . . . . . . . . . . . . . . . . . . . . . . Hacking | -11 -10 -9 -9 -7 -6 -6 -6 -6 -6 -6 -6 -5 -5 -5 -5 -5 -5 -4 -4 -4 -4 -4 -4 -3 -3 -3 -3 -2 --------- Run | Yrd Mat Mat Min Zio Pro Fac Was Fac Low Low Dat Pro Fac Ext Cet Arc Hub Fac Was Fac Upp Upp Zhi Pro Res Arm Lab Res Machines Accessed 39 | . 2 3 . . . 2 . 2 . 1 3 . 3 6 . . 1 . . 4 1 . 4 . . 4 . 3 Terminals 11 | . 1 2 . . . . . . . . . . 1 5 . . . . . . 1 . . . . 1 . . Fabricators 4 | . . . . . . . . 1 . . . . . . . . . . . 1 . . . . . 1 . 1 Repair Stations . | . . . . . . . . . . . . . . . . . . . . . . . . . . . . . Recycling Units 13 | . 1 1 . . . 1 . 1 . . . . 1 1 . . . . . 3 . . . . . 2 . 2 Scanalyzers 2 | . . . . . . 1 . . . . . . 1 . . . . . . . . . . . . . . . Garrison Access 1 | . . . . . . . . . . . . . . . . . 1 . . . . . . . . . . . Total Hacks 114 | . 5 8 . . . 3 . 5 . 1 26 . 6 8 . . 1 . . 10 8 . 17 . . 11 . 5 Successful 79 | . 5 2 . . . 2 . 3 . 1 26 . 3 4 . . . . . 3 8 . 17 . . 3 . 2 Failed 34 | . . 6 . . . . . 2 . . . . 3 4 . . 1 . . 7 . . . . . 8 . 3 Catastrophic 4 | . . . . . . . . 1 . . . . . . . . . . . 1 . . . . . 1 . 1 Database Lockouts 1 | . . . . . . 1 . . . . . . . . . . . . . . . . . . . . . . Manual 154 | . 1 7 . . . 3 . 22 . . . . 15 12 . . 12 . . 21 . . . . 21 26 . 14 Terminals 29 | . 2 7 . . . . . . . . . . 2 7 . . . . . . 8 . . . . 3 . . Fabricators 17 | . . . . . . . . 4 . . . . . . . . . . . 6 . . . . . 5 . 2 Repair Stations . | . . . . . . . . . . . . . . . . . . . . . . . . . . . . . Recycling Units 18 | . 3 1 . . . 1 . 1 . . . . 1 1 . . . . . 4 . . . . . 3 . 3 Scanalyzers 5 | . . . . . . 2 . . . . . . 3 . . . . . . . . . . . . . . . Garrison Access 1 | . . . . . . . . . . . . . . . . . 1 . . . . . . . . . . . Terminal Hacks 59 | . 2 . . . . . . . . 1 26 . 1 3 . . . . . . 8 . 17 . . 1 . . Record 19 | . . . . . . . . . . . 6 . . . . . . . . . 8 . 5 . . . . . Part Schematic 16 | . . . . . . . . . . . 12 . . . . . . . . . . . 4 . . . . . Robot Schematic 5 | . . . . . . . . . . . 5 . . . . . . . . . . . . . . . . . Robot Analysis 4 | . . . . . . . . . . . . . . . . . . . . . . . 4 . . . . . Prototype ID Bank 7 | . . . . . . . . . . . 3 . . . . . . . . . . . 4 . . . . . Open Door 6 | . . . . . . . . . . 1 . . 1 3 . . . . . . . . . . . 1 . . Recall Investigation 1 | . 1 . . . . . . . . . . . . . . . . . . . . . . . . . . . Zone Layout 1 | . 1 . . . . . . . . . . . . . . . . . . . . . . . . . . . Fabricator Hacks 4 | . . . . . . . . 2 . . . . . . . . . . . 1 . . . . . . . 1 Load Schematic 3 | . . . . . . . . 1 . . . . . . . . . . . 1 . . . . . . . 1 Build 1 | . . . . . . . . 1 . . . . . . . . . . . . . . . . . . . . Repair Station Hacks . | . . . . . . . . . . . . . . . . . . . . . . . . . . . . . Recycling Unit Hacks 11 | . 2 1 . . . 1 . . . . . . 1 1 . . . . . 2 . . . . . 2 . 1 Retrieve Components 11 | . 2 1 . . . 1 . . . . . . 1 1 . . . . . 2 . . . . . 2 . 1 Scanalyzer 2 | . . . . . . 1 . . . . . . 1 . . . . . . . . . . . . . . . Retrieve Study 2 | . . . . . . 1 . . . . . . 1 . . . . . . . . . . . . . . . Garrison Access Hacks . | . . . . . . . . . . . . . . . . . . . . . . . . . . . . . Unauthorized Hacks 3 | . 1 1 . . . . . 1 . . . . . . . . . . . . . . . . . . . . Terminals 1 | . . 1 . . . . . . . . . . . . . . . . . . . . . . . . . . Botnet 1 | . . 1 . . . . . . . . . . . . . . . . . . . . . . . . . . Fabricators 1 | . . . . . . . . 1 . . . . . . . . . . . . . . . . . . . . Prioritize 1 | . . . . . . . . 1 . . . . . . . . . . . . . . . . . . . . Repair Stations . | . . . . . . . . . . . . . . . . . . . . . . . . . . . . . Recycling Units 1 | . 1 . . . . . . . . . . . . . . . . . . . . . . . . . . . Tunnel 1 | . 1 . . . . . . . . . . . . . . . . . . . . . . . . . . . Scanalyzers . | . . . . . . . . . . . . . . . . . . . . . . . . . . . . . Garrison Access . | . . . . . . . . . . . . . . . . . . . . . . . . . . . . . Data Cores Recovered . | . . . . . . . . . . . . . . . . . . . . . . . . . . . . . Used . | . . . . . . . . . . . . . . . . . . . . . . . . . . . . . Hacking Detections 15 | . . 2 . . . 1 . 1 . . . . 1 3 . . 1 . . 3 . . . . . 1 . 2 Full Trace Events 2 | . . . . . . . . . . . . . . . . . . . . 2 . . . . . . . . Feedback Events . | . . . . . . . . . . . . . . . . . . . . . . . . . . . . . Feedback Blocked . | . . . . . . . . . . . . . . . . . . . . . . . . . . . . . Robot Schematics Acquired 11 | . . . . 3 . . . . . . 5 . . . . . . . . . . . . . . 3 . . Robots Built 2 | . . . . . . . . 2 . . . . . . . . . . . . . . . . . . . . Authchips 1 | . . . . . . . . 1 . . . . . . . . . . . . . . . . . . . . Time 187 | . . . . . . . . 187 . . . . . . . . . . . . . . . . . . . . Total Robot Build Rating 14 | . . . . . . . . 14 . . . . . . . . . . . . . . . . . . . . Part Schematics Acquired 40 | . . . . 15 . . . . . . 12 . 9 . . . . . . . . . 4 . . . . . Parts Built . | . . . . . . . . . . . . . . . . . . . . . . . . . . . . . Authchips . | . . . . . . . . . . . . . . . . . . . . . . . . . . . . . Time . | . . . . . . . . . . . . . . . . . . . . . . . . . . . . . Total Part Build Rating . | . . . . . . . . . . . . . . . . . . . . . . . . . . . . . Part Studies Acquired 2 | . . . . . . 1 . . . . . . 1 . . . . . . . . . . . . . . . Parts Repaired . | . . . . . . . . . . . . . . . . . . . . . . . . . . . . . Time . | . . . . . . . . . . . . . . . . . . . . . . . . . . . . . Parts Recycled . | . . . . . . . . . . . . . . . . . . . . . . . . . . . . . Recycled Matter . | . . . . . . . . . . . . . . . . . . . . . . . . . . . . . Retrieved Matter . | . . . . . . . . . . . . . . . . . . . . . . . . . . . . . Retrieved Components 33 | . . 9 . . . 1 . . . . . . 2 10 . . . . . 1 . . . . . . . 10 Parts Scanalyzed . | . . . . . . . . . . . . . . . . . . . . . . . . . . . . . Part Schematics Acquired . | . . . . . . . . . . . . . . . . . . . . . . . . . . . . . Parts Damaged . | . . . . . . . . . . . . . . . . . . . . . . . . . . . . . Bothacking | -11 -10 -9 -9 -7 -6 -6 -6 -6 -6 -6 -6 -5 -5 -5 -5 -5 -5 -4 -4 -4 -4 -4 -4 -3 -3 -3 -3 -2 ------------ Run | Yrd Mat Mat Min Zio Pro Fac Was Fac Low Low Dat Pro Fac Ext Cet Arc Hub Fac Was Fac Upp Upp Zhi Pro Res Arm Lab Res Used RIF Installer . | . . . . . . . . . . . . . . . . . . . . . . . . . . . . . Robots Hacked 4 | . . . . . . . . 1 . . . . . . . 3 . . . . . . . . . . . . Non-combat . | . . . . . . . . . . . . . . . . . . . . . . . . . . . . . Combat 4 | . . . . . . . . 1 . . . . . . . 3 . . . . . . . . . . . . Robot Hacks Applied 4 | . . . . . . . . 1 . . . . . . . 3 . . . . . . . . . . . . parse_system 4 | . . . . . . . . 1 . . . . . . . 3 . . . . . . . . . . . . Relay Couplers Released 3 | . . . . . . . . . . . . . . . . . . . . . . . . . . . . 3 Machine Destruction 3 | . . . . . . . . . . . . . . . . . . . . . . . . . . . . 3 Fabnet Peak Effective % . | . . . . . . . . . . . . . . . . . . . . . . . . . . . . . Robots Rewired 21 | . . . . . . . . . . . . . . 14 . . . . . . . . . . . 7 . . Allies Hacked 6 | . . . . . . . . . . . . . 1 1 . . . . . 2 . . . . . 2 . . Hacks Repelled . | . . . . . . . . . . . . . . . . . . . . . . . . . . . . . Allies | -11 -10 -9 -9 -7 -6 -6 -6 -6 -6 -6 -6 -5 -5 -5 -5 -5 -5 -4 -4 -4 -4 -4 -4 -3 -3 -3 -3 -2 -------- Run | Yrd Mat Mat Min Zio Pro Fac Was Fac Low Low Dat Pro Fac Ext Cet Arc Hub Fac Was Fac Upp Upp Zhi Pro Res Arm Lab Res Total Allies 118 | . . . 1 4 . 3 22 4 . . . . 3 25 . . 6 . . 10 . . . . 10 18 . 12 Largest Group 22 | . . . 1 5 5 3 22 19 16 12 11 9 10 11 4 3 6 . . 4 . . . . 6 8 . 4 Highest-Rated Group 992 | . . . 31 187 187 210 895 992 822 602 570 481 612 444 164 74 420 . . 288 . . . . 405 399 . 426 Highest-Rated Ally 141 | . . . 31 42 42 70 70 141 141 141 141 135 135 114 85 34 70 . . 96 . . . . 96 81 . 122 Zionite Dispatches 26 | . . . . . . 1 . 2 . . . . 2 3 . . 2 . . 3 . . . . 4 4 . 5 Heavy 2 | . . . . . . . . . . . . . . 1 . . . . . . . . . . . . . 1 Light 9 | . . . . . . 1 . . . . . . 1 1 . . 2 . . 1 . . . . 1 . . 2 Recon 1 | . . . . . . . . . . . . . 1 . . . . . . . . . . . . . . . Fire 6 | . . . . . . . . . . . . . . . . . . . . 2 . . . . 2 2 . . Hacker 2 | . . . . . . . . . . . . . . . . . . . . . . . . . . 1 . 1 Hero 1 | . . . . . . . . 1 . . . . . . . . . . . . . . . . . . . . Thermal Resupply 1 | . . . . . . . . 1 . . . . . . . . . . . . . . . . . . . . Melee Resupply 1 | . . . . . . . . . . . . . . . . . . . . . . . . . 1 . . . Resource Resupply 1 | . . . . . . . . . . . . . . . . . . . . . . . . . . 1 . . Hacking Resupply 1 | . . . . . . . . . . . . . . 1 . . . . . . . . . . . . . . Zionite Resupply 1 | . . . . . . . . . . . . . . . . . . . . . . . . . . . . 1 Total Orders 9 | . . . . . . . . 2 . . . . . 2 . . . . . . . . . . 2 1 . 2 STAY 4 | . . . . . . . . 1 . . . . . 1 . . . . . . . . . . 1 . . 1 DROP 5 | . . . . . . . . 1 . . . . . 1 . . . . . . . . . . 1 1 . 1 Ally Attacks 949 | . . . 6 . 31 . 111 121 14 17 52 45 115 137 11 3 41 . . 36 . . . . 33 74 . 102 Total Damage 29985 | . . . 86 . 880 . 3152 3944 855 626 1460 1416 4410 3280 408 . 876 . . 1245 . . . . 813 2294 . 4240 Kills 177 | . . . 1 . 7 . 10 24 5 2 6 15 25 25 3 . 4 . . 7 . . . . 8 14 . 21 Allies Corrupted 5 | . . . . . . . . . . 1 . . . . . . . . . 1 . . . . . 3 . . Allies Melted 1 | . . . . . . . . . . . . . . . . . . . . . . . . . . . . 1 Intel | -11 -10 -9 -9 -7 -6 -6 -6 -6 -6 -6 -6 -5 -5 -5 -5 -5 -5 -4 -4 -4 -4 -4 -4 -3 -3 -3 -3 -2 ------- Run | Yrd Mat Mat Min Zio Pro Fac Was Fac Low Low Dat Pro Fac Ext Cet Arc Hub Fac Was Fac Upp Upp Zhi Pro Res Arm Lab Res Active Infowar (turns) 10580 | 6 507 671 258 793 564 195 280 407 456 335 187 490 757 1096 . . . . . 481 79 100 128 243 354 626 737 830 Optics 8182 | . . 627 258 792 564 195 280 407 456 335 187 490 757 1067 . . . . . . . . . . . 200 737 830 Sensors 4827 | . . . . 1 347 17 279 407 456 335 79 490 376 240 . . . . . 481 79 100 128 243 354 415 . . Terrain 2771 | . . . . . . 160 . 224 454 335 187 490 757 164 . . . . . . . . . . . . . . Seismic 878 | 6 507 364 . . . . . . . . . . . . . . . . . . . 1 . . . . . . Cloaking 2031 | . . . . . . . . . . . . . . . . . . . . . . . . . 282 484 735 530 Jamming 6 | . . . . . . . . . . . . . . . . . . . . . . 6 . . . . . . Robot Analysis Total 4 | . . . . . . . . . . . . . . . . . . . . . . . 4 . . . . . Derelict Logs Recovered 9 | . . . 1 . 1 . . . 1 2 . 1 . . . . . . . . 2 1 . . . . . . Drone Launches . | . . . . . . . . . . . . . . . . . . . . . . . . . . . . . Drone Recoveries . | . . . . . . . . . . . . . . . . . . . . . . . . . . . . . Zionite Intel Received 13 | . . . . . . . . 3 . . . . 2 1 . . 1 . . 2 . . . . 1 3 . . Branch Access 2 | . . . . . . . . . . . . . . . . . . . . 1 . . . . 1 . . . Guard Positions 1 | . . . . . . . . 1 . . . . . . . . . . . . . . . . . . . . Prototype Stockpiles 3 | . . . . . . . . . . . . . 1 . . . . . . 1 . . . . . 1 . . Prototype Schematics 1 | . . . . . . . . . . . . . 1 . . . . . . . . . . . . . . . Unaware Schematics 1 | . . . . . . . . . . . . . . . . . . . . . . . . . . 1 . . Active Terminals 3 | . . . . . . . . 1 . . . . . . . . 1 . . . . . . . . 1 . . Depthwide Sectors/0 1 | . . . . . . . . 1 . . . . . . . . . . . . . . . . . . . . Depthwide Sectors/-1 1 | . . . . . . . . . . . . . . 1 . . . . . . . . . . . . . . Exploration | -11 -10 -9 -9 -7 -6 -6 -6 -6 -6 -6 -6 -5 -5 -5 -5 -5 -5 -4 -4 -4 -4 -4 -4 -3 -3 -3 -3 -2 ------------- Run | Yrd Mat Mat Min Zio Pro Fac Was Fac Low Low Dat Pro Fac Ext Cet Arc Hub Fac Was Fac Upp Upp Zhi Pro Res Arm Lab Res Turns Passed 13598 | 153 507 671 603 1946 564 195 280 407 456 335 187 490 757 1459 266 67 164 96 63 592 79 100 128 243 354 869 737 830 Spaces Moved 13564 | 72 313 474 499 1557 413 142 325 568 390 294 147 326 787 1223 240 57 250 157 112 923 349 427 248 311 681 1064 397 818 Core 21 | 15 . . . . . . . . . . . . . . . . . . . . . . . . . . . 6 Treads . | . . . . . . . . . . . . . . . . . . . . . . . . . . . . . Legs . | . . . . . . . . . . . . . . . . . . . . . . . . . . . . . Wheels 3356 | 57 313 474 499 1557 413 43 . . . . . . . . . . . . . . . . . . . . . . Hover 7867 | . . . . . . 99 325 568 390 294 147 326 787 1223 240 57 250 157 112 648 . . . . . 1037 397 810 Flight 2320 | . . . . . . . . . . . . . . . . . . . . 275 349 427 248 311 681 27 . 2 Fastest Speed 5 | 50 80 80 90 105 120 38 38 27 40 40 40 92 33 24 40 48 43 43 43 5 5 6 20 12 20 29 39 33 Average Speed 58 | 89 90 91 97 112 120 68 39 39 40 40 52 92 35 63 42 48 51 53 43 36 17 19 33 22 29 39 39 54 Slowest Speed 850 | 100 100 100 105 120 120 211 106 40 40 40 92 92 98 106 102 48 56 56 43 171 20 20 85 28 35 184 39 850 Overloaded Moves 495 | . . . . . . . . 12 . . . . . 60 . . . . . 209 52 29 . 116 17 . . . Propulsion Burnouts . | . . . . . . . . . . . . . . . . . . . . . . . . . . . . . Robots Hopped 10 | . . . . . . . . . . . . . . . . . . . . 5 . . . . 5 . . . Potential Cave-ins 23 | . . . . . . . . . . . . . . 9 . . . . . 7 . . . . . . . 7 Cave-ins Triggered 1 | . . . . . . . . . . . . . . 1 . . . . . . . . . . . . . . Teleports 1 | . . . . . . . . . . . . . . . . . . . . . . . . . . . . 1 Exploration Rate (%) 53 | 6 61 41 97 91 53 5 94 21 62 56 82 56 24 82 63 61 47 4 81 24 53 54 90 52 21 48 95 40 Regions Visited 28 Branch Regions 17 Pre-discovered Areas 20 | . 1 . 1 3 . . . 6 . . 1 . . 4 . . . . . . 1 . 3 . . . . . Known Exits Taken 10 | . . . . . . . . . . . . 1 1 . . . . . . 1 1 1 1 1 1 1 1 . Unknown Exits Taken 14 | 1 1 1 1 1 1 . . 1 1 1 1 . . 1 1 1 1 . . . . . . . . . . . Scrap Searched 15 | . . . 1 3 1 . . . 3 3 . 1 . . . . . . . . . 3 . . . . . . Spaces Dug 62 | . . . . . . 1 . 1 1 . . . 14 2 . . . . 1 7 1 . . . 14 11 . 9 Terrain Destroyed 309 | . . 5 12 . 4 6 . 1 1 . . . 14 75 14 6 . . 4 62 1 . . . 14 30 3 57 Melee 37 | . . . . . . 1 . 1 1 . . . 14 . . . . . . . 1 . . . 14 5 . . Projectile 126 | . . . . . 4 5 . . . . . . . 17 . . . . 4 24 . . . . . 25 3 44 AOE 146 | . . 5 12 . . . . . . . . . . 58 14 6 . . . 38 . . . . . . . 13 Terrain Rammed . | . . . . . . . . . . . . . . . . . . . . . . . . . . . . . Walls Destroyed . | . . . . . . . . . . . . . . . . . . . . . . . . . . . . . Machines Disabled . | . . . . . . . . . . . . . . . . . . . . . . . . . . . . . Actions | -11 -10 -9 -9 -7 -6 -6 -6 -6 -6 -6 -6 -5 -5 -5 -5 -5 -5 -4 -4 -4 -4 -4 -4 -3 -3 -3 -3 -2 --------- Run | Yrd Mat Mat Min Zio Pro Fac Was Fac Low Low Dat Pro Fac Ext Cet Arc Hub Fac Was Fac Upp Upp Zhi Pro Res Arm Lab Res Total 18320 | 115 450 619 566 1751 457 197 477 720 682 505 254 515 1219 1825 408 95 286 167 120 1126 363 445 295 482 803 1389 929 1060 Wait 2806 | . 77 46 36 111 19 . 124 102 286 197 86 178 351 225 109 18 2 2 4 81 11 2 26 169 24 60 423 37 Move 13518 | 71 312 473 498 1556 412 142 324 567 389 293 146 325 786 1221 239 56 249 157 111 912 348 426 247 310 671 1063 396 818 Hop 9 | . . . . . . . . . . . . . . . . . . . . 5 . . . . 4 . . . Pick Up 314 | 9 7 20 3 36 5 8 8 6 . 3 4 6 8 47 15 . 1 1 . 18 1 4 6 1 19 42 18 18 Fast Attach 113 | . . 2 . . . 1 3 3 2 2 2 . 10 13 . 1 . 4 1 15 . 4 3 . 14 23 . 10 Attach 191 | 7 2 9 2 12 2 9 1 3 . . 3 . 6 41 4 1 3 1 . 20 . 3 4 . 8 17 7 26 Detach 52 | . . . . 2 . 2 2 2 . . 1 . 6 14 1 1 2 . . 2 . 1 . . 1 2 5 8 Swap 114 | . 5 4 1 10 6 4 4 4 . . 4 3 4 19 9 1 . . . 4 . . . . 2 18 5 7 Drop 320 | . 1 14 2 23 1 8 11 7 1 4 6 3 15 49 16 1 3 2 . 24 2 5 8 . 25 42 17 30 Fire 633 | 28 46 51 24 . 12 21 . 1 . . . . . 111 15 16 1 . 4 44 . . . . . 102 58 99 Melee 128 | . . . . 1 . 2 . 19 4 4 2 . 33 7 . . . . . . 1 . 1 2 32 20 . . Ram 15 | . . . . . . . . . . . . . . 1 . . 3 . . 1 . . . . 3 . . 7 Kick . | . . . . . . . . . . . . . . . . . . . . . . . . . . . . . Crush . | . . . . . . . . . . . . . . . . . . . . . . . . . . . . . Escape Stasis 53 | . . . . . . . . 6 . . . . . 25 . . 22 . . . . . . . . . . . Rewire 54 | . . . . . . . . . . 2 . . . 52 . . . . . . . . . . . . . . Trap . | . . . . . . . . . . . . . . . . . . . . . . . . . . . . . Miscellaneous . | . . . . . . . . . . . . . . . . . . . . . . . . . . . . . Route ------- -11/Scrapyard -10/Materials (discovered 2 exits: *Mat x2) -9/Materials (discovered 2 exits: [*Mat] / [*Min]) -9/Mines (discovered 4 exits: [*Mat x2] / [*Exi] / [*Zio]) -7/Zion -6/Proximity Caves -6/Factory -6/Waste -6/Factory -6/Lower Caves -6/Lower Caves -6/Data Miner -5/Proximity Caves -5/Factory (discovered 2 exits: [*Fac] / *Ext) -5/Extension (discovered 2 exits: [*Fac] / [*Cet]) -5/Cetus (discovered 3 exits: [*Fac x2] / [*Arc]) -5/Archives -5/Hub_04(d) (discovered 2 exits: [*Fac x2]) -4/Factory -4/Waste -4/Factory (discovered 2 exits: *Upp x2) -4/Upper Caves -4/Upper Caves (discovered 2 exits: Res / *Zhi) -4/Zhirov -3/Proximity Caves -3/Research (discovered 5 exits: Res x2 / *Arm / *Tes x2) -3/Armory -3/Lab -2/Research (discovered 2 exits: *Acc x2) History --------- Turn | Location | Event 9 | -11/Scrapyard | Discovered new exit (range 16) 154 | -11/Scrapyard | Entered Materials 308 | -10/Materials | Build established: Mutant 602 | -10/Materials | Discovered new exit (range 4) 640 | -10/Materials | Discovered new exit (range 8) 661 | -10/Materials | Entered another Materials area 661 | -9/Materials | Evolved 2 slots: Utility x2 828 | -9/Materials | Build established: Scavenger-Mutant 1138 | -9/Materials | Discovered new exit (range 18) 1232 | -9/Materials | Build established: Mutant 1246 | -9/Materials | Discovered new exit (range 18) 1332 | -9/Materials | Entered Mines 1336 | -9/Mines | Met a Derelict bent on vengeance 1338 | -9/Mines | Discovered new exit (range 10) 1339 | -9/Mines | A Derelict revealed a hidden shortcut to a safe place 1393 | -9/Mines | Found a damaged Exp. Sensor Array with a note attached 1395 | -9/Mines | Found Prototype Device 1453 | -9/Mines | Discovered new exit (range 3) 1525 | -9/Mines | Learned location of Zion (-7) 1640 | -9/Mines | Escorted by a lone wolf Derelict 1650 | -9/Mines | Deemed a non-threat by the Exiles lab entrance 1650 | -9/Mines | Discovered new exit (range 5) 1935 | -9/Mines | Entered Zion 1935 | -7/Zion | Accompanied by 1 ally 1935 | -7/Zion | Identified Exp. Sensor Array 1947 | -7/Zion | Acquired unknown access codes intercepted by a Zionite 2038 | -7/Zion | Discovered new exit (range 10) 2397 | -7/Zion | Learned location of Warlord (-5) 3052 | -7/Zion | Found Prototype Processor 3060 | -7/Zion | Found Prototype Processor 3066 | -7/Zion | Found Prototype Processor 3068 | -7/Zion | Found Prototype Processor 3221 | -7/Zion | Identified Exp. Target Analyzer 3223 | -7/Zion | Identified Exp. Melee Analysis Suite 3226 | -7/Zion | Identified Exp. Targeting Computer 3244 | -7/Zion | Identified Exp. Core Analyzer 3264 | -7/Zion | System corruption cleaned by Quarantine Array 3411 | -7/Zion | Met Imprinter 3431 | -7/Zion | Imprinted 3433 | -7/Zion | Declared Zion's savior 3881 | -7/Zion | Entered Proximity Caves 3881 | -6/Proximity Caves | Accompanied by 5 allies 3886 | -6/Proximity Caves | Learned location of 1 exit from Factory 4221 | -6/Proximity Caves | Attracted the attention of an 0b10 checkpoint 4229 | -6/Proximity Caves | Core integrity fell below 50% 4302 | -6/Proximity Caves | Discovered new exit (range 11) 4445 | -6/Proximity Caves | Entered Factory 4445 | -6/Factory | Evolved 6 slots: Power x1, Propulsion x2, Utility x3 4446 | -6/Factory | Identified exit to Factory 4606 | -6/Factory | Zion Light squad teleported in 4631 | -6/Factory | Central database locked down 4640 | -6/Factory | Sucked down chute 4640 | -6/Factory | Entered Waste 4640 | -6/Waste | Met up with 3 allies sucked down the chute earlier 4652 | -6/Waste | Spotted C-40 Crusher 4658 | -6/Waste | Allies destroyed C-40 Crusher 4675 | -6/Waste | Spotted C-40 Crusher 4682 | -6/Waste | Warlord forces began an assault 4741 | -6/Waste | Spotted C-40 Crusher 4754 | -6/Waste | Allies destroyed C-40 Crusher 4757 | -6/Waste | Spotted C-40 Crusher 4761 | -6/Waste | Allies destroyed C-40 Crusher 4786 | -6/Waste | Spotted C-40 Crusher 4790 | -6/Waste | Lost 5 allies 4795 | -6/Waste | Spotted C-40 Crusher 4806 | -6/Waste | Allies destroyed C-40 Crusher 4842 | -6/Waste | Discovered new exit (range 13) 4920 | -6/Waste | Entered Factory 4920 | -6/Factory | Accompanied by 17 allies 4973 | -6/Factory | Retrieved Zion intel report: Active Terminals 4974 | -6/Factory | Zion hero teleported in (1C-UTU) 5052 | -6/Factory | Fabricated X-77 Beamer? 5080 | -6/Factory | Retrieved Zion intel report: Depthwide Sectors/-6 5128 | -6/Factory | Retrieved Zion intel report: Guard Positions 5129 | -6/Factory | Zion Thermal Resupply teleported in 5203 | -6/Factory | Discovered new exit (range 20) 5270 | -6/Factory | First assault squad dispatched 5327 | -6/Factory | Entered Lower Caves 5327 | -6/Lower Caves | Accompanied by 16 allies (1C-UTU) 5387 | -6/Lower Caves | Found Alien Artifact 5387 | -6/Lower Caves | Identified Core Expander 5387 | -6/Lower Caves | Installed Core Expander, added new Power slot 5410 | -6/Lower Caves | Build established: Scout 5487 | -6/Lower Caves | Lost 3 allies 5606 | -6/Lower Caves | Learned Factory terminal intel 5643 | -6/Lower Caves | Encountered a Warlord checkpoint 5720 | -6/Lower Caves | Discovered new exit (range 17) 5783 | -6/Lower Caves | Entered another Lower Caves area 5783 | -6/Lower Caves | Accompanied by 12 allies (1C-UTU) 5812 | -6/Lower Caves | Learned 8 Factory zone layouts 5815 | -6/Lower Caves | Learned 4 Factory zone layouts 5960 | -6/Lower Caves | Encountered a Warlord checkpoint 6036 | -6/Lower Caves | Discovered new exit (range 20) 6118 | -6/Lower Caves | Entered Data Miner 6118 | -6/Data Miner | Accompanied by 11 allies (1C-UTU) 6122 | -6/Data Miner | Discovered new exit (range 6) 6127 | -6/Data Miner | Met Data Miner 6138 | -6/Data Miner | Learned location of Section 7 (-2) 6138 | -6/Data Miner | Acquired the access code to Warlord's prototype stash 6144 | -6/Data Miner | Received God Mode back door access code from Data Miner 6176 | -6/Data Miner | Data Conduit disabled 6305 | -6/Data Miner | Entered Proximity Caves 6305 | -5/Proximity Caves | Accompanied by 9 allies (1C-UTU) 6375 | -5/Proximity Caves | Spotter reported a threat 6504 | -5/Proximity Caves | Build established: Assassin 6516 | -5/Proximity Caves | Spotter reported a threat 6634 | -5/Proximity Caves | Learned Factory trap positions 6662 | -5/Proximity Caves | Discovered exit to Factory (range 20) 6752 | -5/Proximity Caves | Attracted the attention of an 0b10 checkpoint 6795 | -5/Proximity Caves | Entered Factory 6795 | -5/Factory | Accompanied by 9 allies (1C-UTU) 6795 | -5/Factory | Evolved 2 slots: Propulsion x2 6796 | -5/Factory | Identified exit to Extension 6797 | -5/Factory | Loaded intel: 94 trap records 6798 | -5/Factory | Loaded intel: 27 terminal locations 6856 | -5/Factory | Retrieved Zion intel report: Prototype Stockpiles 6857 | -5/Factory | Zion Recon squad teleported in 7105 | -5/Factory | Build established: Scout 7125 | -5/Factory | Zion Light squad teleported in 7307 | -5/Factory | Found Unknown Device 7307 | -5/Factory | Identified Quantum Capacitor 7418 | -5/Factory | Lost 3 allies 7494 | -5/Factory | Discovered new exit (range 23) 7496 | -5/Factory | Retrieved Zion intel report: Prototype Schematics 7552 | -5/Factory | Entered Extension 7552 | -5/Extension | Accompanied by 3 allies (1C-UTU) 7563 | -5/Extension | Found Launcher Loader 7580 | -5/Extension | Rescued a captive Derelict 7607 | -5/Extension | Rescued a captive Derelict 7617 | -5/Extension | Rescued a captive Derelict 7619 | -5/Extension | Retrieved Zion intel report: Depthwide Sectors/-4 7620 | -5/Extension | Zion Light squad teleported in 7665 | -5/Extension | Lost 5 allies 7673 | -5/Extension | Lost 4 parts (1n3u) 7674 | -5/Extension | Found Prototype Protection 7674 | -5/Extension | Identified Zio. Weapon Casing 7689 | -5/Extension | Found Zio. Weapon Casing 7717 | -5/Extension | Found Corrupted Femtoactuators 7719 | -5/Extension | Found Exp. Actuator Array 7910 | -5/Extension | Rescued a captive Derelict 7939 | -5/Extension | Build established: Messiah-Mutant 7952 | -5/Extension | Disrupted transfer network 8334 | -5/Extension | Spotted B-75 Beast 8341 | -5/Extension | Spotted B-75 Beast 8363 | -5/Extension | Destroyed B-75 Beast 8500 | -5/Extension | Lost 3 allies 8501 | -5/Extension | Destroyed 9 combat bots 8619 | -5/Extension | Crushed by falling debris 8620 | -5/Extension | System corruption reached 10% 8625 | -5/Extension | Energy Cycler disabled 8626 | -5/Extension | Rescued a captive Derelict 8626 | -5/Extension | Rescued a captive Derelict 8628 | -5/Extension | Rescued a captive Derelict 8653 | -5/Extension | Zion Heavy squad teleported in 8684 | -5/Extension | Lost 9 parts (2p3n4u) 8745 | -5/Extension | Zion Hacking Resupply teleported in 8745 | -5/Extension | Disrupted transfer network 8752 | -5/Extension | First assault squad dispatched 8855 | -5/Extension | Found Zio. Weapon Casing 8860 | -5/Extension | Lost 4 allies 8917 | -5/Extension | Discovered new exit (range 10) 8918 | -5/Extension | Discovered new exit (range 6) 8921 | -5/Extension | Extracted ID and sensor layout for unrecognized location from A7's data core 8951 | -5/Extension | Found Prototype Protection 8963 | -5/Extension | Identified Med. Regenerative Plating 9011 | -5/Extension | Entered Cetus 9011 | -5/Cetus | Accompanied by 4 allies 9017 | -5/Cetus | Spotted Cetus Guard 9017 | -5/Cetus | Spotted Cetus Guard 9018 | -5/Cetus | Spotted Cetus Guard 9028 | -5/Cetus | Destroyed Cetus Guard 9032 | -5/Cetus | Allies destroyed Cetus Guard 9038 | -5/Cetus | Discovered new exit (range 15) 9051 | -5/Cetus | Allies destroyed Cetus Guard 9086 | -5/Cetus | Discovered new exit (range 15) 9146 | -5/Cetus | Spotted Cetus Guard 9147 | -5/Cetus | Spotted Cetus Guard 9150 | -5/Cetus | Spotted Cetus Guard 9153 | -5/Cetus | Destroyed Cetus Guard 9153 | -5/Cetus | Destroyed Cetus Guard 9166 | -5/Cetus | Destroyed Cetus Guard 9177 | -5/Cetus | Found Zio. Weapon Casing 9182 | -5/Cetus | Spotted Cetus Guard 9184 | -5/Cetus | Discovered new exit (range 16) 9188 | -5/Cetus | Destroyed Cetus Guard 9193 | -5/Cetus | Scared off Revision 17 9277 | -5/Cetus | Entered Archives 9277 | -5/Archives | Accompanied by 3 allies 9283 | -5/Archives | Met Zhirov 9289 | -5/Archives | Reinforcements dispatched to Archives 9319 | -5/Archives | Discovered new exit (range 16) 9331 | -5/Archives | Destroyed 10 combat bots 9334 | -5/Archives | Reinforcements dispatched to Archives 9344 | -5/Archives | Entered Hub_04(d) 9344 | -5/Hub_04(d) | Accompanied by 3 allies 9407 | -5/Hub_04(d) | Retrieved Zion intel report: Active Terminals 9408 | -5/Hub_04(d) | Zion Light squad teleported in 9428 | -5/Hub_04(d) | Zion Light squad teleported in 9458 | -5/Hub_04(d) | Lost 3 parts (3n) 9466 | -5/Hub_04(d) | Network Hub disabled 9474 | -5/Hub_04(d) | Spotted B-75 Beast 9500 | -5/Hub_04(d) | Lost 5 allies 9506 | -5/Hub_04(d) | Discovered new exit (range 12) 9506 | -5/Hub_04(d) | Discovered new exit (range 3) 9508 | -5/Hub_04(d) | Core integrity fell below 50% 9508 | -5/Hub_04(d) | Entered Factory 9508 | -4/Factory | Evolved 2 slots: Propulsion x1, Utility x1 9537 | -4/Factory | Lost 3 parts (1p2u) 9604 | -4/Factory | Sucked down chute 9604 | -4/Factory | Entered Waste 9618 | -4/Waste | Spotted C-40 Crusher 9619 | -4/Waste | EMP discharged 9621 | -4/Waste | Spotted C-40 Crusher 9623 | -4/Waste | Spotted C-40 Crusher 9628 | -4/Waste | Build established: Scavenger-Mutant 9628 | -4/Waste | Spotted C-40 Crusher 9642 | -4/Waste | Spotted C-40 Crusher 9644 | -4/Waste | Spotted C-40 Crusher 9645 | -4/Waste | Discovered new exit (range 16) 9667 | -4/Waste | Entered Factory 9769 | -4/Factory | Retrieved Zion intel report: Branch Access 9769 | -4/Factory | Identified exit to Upper Caves 9770 | -4/Factory | Zion Fire squad teleported in 10051 | -4/Factory | Spotted B-86 Titan 10083 | -4/Factory | System corruption reached 10% 10101 | -4/Factory | Garrison activated, responded to threat 10129 | -4/Factory | Lost 5 parts (1p2n1u1w) 10166 | -4/Factory | Retrieved Zion intel report: Prototype Stockpiles 10167 | -4/Factory | Zion Light squad teleported in 10193 | -4/Factory | Lost 5 parts (2p2u1w) 10235 | -4/Factory | Lost 3 allies 10239 | -4/Factory | Zion Fire squad teleported in 10241 | -4/Factory | Allied Derelicts emerged from ambush trap array 10259 | -4/Factory | Entered Upper Caves 10278 | -4/Upper Caves | Learned location of 1 exit from Research 10279 | -4/Upper Caves | Attracted the attention of an 0b10 base 10279 | -4/Upper Caves | Learned Research security intel 10279 | -4/Upper Caves | Learned Factory security intel 10279 | -4/Upper Caves | Learned Research stockpile data 10279 | -4/Upper Caves | Learned 8 Factory zone layouts 10279 | -4/Upper Caves | Learned location of 1 exit from Research 10279 | -4/Upper Caves | Learned location of Quarantine (-2) 10290 | -4/Upper Caves | Lost 5 allies 10337 | -4/Upper Caves | Discovered new exit (range 5) 10338 | -4/Upper Caves | Identified exit to Upper Caves 10338 | -4/Upper Caves | Entered another Upper Caves area 10339 | -4/Upper Caves | Found DCF Scrap (15 items) 10342 | -4/Upper Caves | Identified exit to Research 10379 | -4/Upper Caves | Encountered a Warlord checkpoint 10429 | -4/Upper Caves | Build established: Scavenger-Sprinter 10437 | -4/Upper Caves | Discovered new exit (range 11) 10438 | -4/Upper Caves | Identified exit to Zhirov 10438 | -4/Upper Caves | Entered Zhirov 10438 | -4/Zhirov | Discovered new exit (range 3) 10447 | -4/Zhirov | Learned location of Testing (-3) 10447 | -4/Zhirov | Learned location of Command (-1) 10453 | -4/Zhirov | Found Alien Artifact 10453 | -4/Zhirov | Identified Integrated Dissipator 10453 | -4/Zhirov | Installed Integrated Dissipator, increased core heat dissipation (+20) 10461 | -4/Zhirov | Found Alien Artifact 10514 | -4/Zhirov | Cloak Generator disabled 10526 | -4/Zhirov | Enhanced Grunts warped into view 10566 | -4/Zhirov | Identified exit to Proximity Caves 10566 | -4/Zhirov | Entered Proximity Caves 10575 | -3/Proximity Caves | Lost 5 parts (2p1n2u) 10575 | -3/Proximity Caves | Lost 8 allies 10710 | -3/Proximity Caves | Received a Behemoth hack from an annoying Tinkerer 10753 | -3/Proximity Caves | Found Alien Artifact 10783 | -3/Proximity Caves | Attracted the attention of an 0b10 checkpoint 10806 | -3/Proximity Caves | Discovered exit to Research (range 10) 10809 | -3/Proximity Caves | Entered Research 10809 | -3/Research | Evolved 2 slots: Propulsion x1, Utility x1 10810 | -3/Research | Identified exit to Research 10889 | -3/Research | Retrieved Zion intel report: Branch Access 10889 | -3/Research | Identified exit to Armory 10889 | -3/Research | Identified exit to Testing 10890 | -3/Research | Zion Melee Resupply teleported in 10923 | -3/Research | Zion Light squad teleported in 10958 | -3/Research | Zion Fire squad teleported in 11041 | -3/Research | Lost 6 allies 11080 | -3/Research | Build established: Sprinter 11097 | -3/Research | Spotted B-86 Titan 11108 | -3/Research | Zion Fire squad teleported in 11163 | -3/Research | Entered Armory 11349 | -3/Armory | Spotted B-86 Titan 11354 | -3/Armory | Allies destroyed B-86 Titan 11363 | -3/Armory | Retrieved Zion intel report: Active Terminals 11423 | -3/Armory | Found Exp. Targeting Computer 11477 | -3/Armory | Found Exp. Terrain Scan Processor 11637 | -3/Armory | Lost 3 allies 11645 | -3/Armory | Lost 3 parts (2u1w) 11784 | -3/Armory | Retrieved Zion intel report: Prototype Stockpiles 11785 | -3/Armory | Zion Hacker squad teleported in 11805 | -3/Armory | Zion Fire squad teleported in 11829 | -3/Armory | Found Exp. Signal Interpreter 11831 | -3/Armory | Found Prototype Processor 11832 | -3/Armory | Identified Spectral Analyzer 11835 | -3/Armory | Found Spectral Analyzer 11836 | -3/Armory | Found Exp. Signal Interpreter 11845 | -3/Armory | Zion Fire squad teleported in 11852 | -3/Armory | Retrieved Zion intel report: Unaware Schematics 11853 | -3/Armory | Zion Resource Resupply teleported in 11867 | -3/Armory | Lost 3 allies 11913 | -3/Armory | First assault squad dispatched 11930 | -3/Armory | Found Adv. Force Booster 11941 | -3/Armory | Lost 8 allies 11964 | -3/Armory | Found Adv. Powered Armor 11972 | -3/Armory | Found Adv. Powered Armor 11986 | -3/Armory | Discovered new exit (range 4) 12031 | -3/Armory | Identified exit to Lab 12032 | -3/Armory | Entered Lab 12032 | -3/Lab | Discovered exit to Research (range 11) 12042 | -3/Lab | Hidden lab's door opened automatically 12042 | -3/Lab | Sensor layout match revealed 12043 | -3/Lab | Gained access to the hidden lab's interior 12229 | -3/Lab | Build established: Mutant 12239 | -3/Lab | Found Alien Artifact 12257 | -3/Lab | Found Alien Artifact 12265 | -3/Lab | Found Integrated Dissipator 12266 | -3/Lab | Installed Integrated Dissipator, increased core heat dissipation (+20) 12314 | -3/Lab | Found Core Expander 12324 | -3/Lab | Found Prototype Special Weapon 12643 | -3/Lab | Found Prototype Energy Cannon 12658 | -3/Lab | Found Prototype Energy Cannon 12659 | -3/Lab | Found Prototype Protection 12661 | -3/Lab | Found Quantum Router 12729 | -3/Lab | Identified Gui. Remote Datajack 12731 | -3/Lab | Identified Warp Cannon 12733 | -3/Lab | Identified Potential Cannon 12734 | -3/Lab | Identified Exp. Powered Armor 12769 | -3/Lab | Entered Research 12769 | -2/Research | Evolved 2 slots: Utility x2 12797 | -2/Research | Zion Hacker squad teleported in 12843 | -2/Research | Spotted B-90 Cyclops 12853 | -2/Research | Destroyed B-90 Cyclops 12872 | -2/Research | Zion Light squad teleported in 12888 | -2/Research | Zion Zionite Resupply teleported in 12982 | -2/Research | Discovered new exit (range 6) 13003 | -2/Research | Identified exit to Access 13009 | -2/Research | Garrison activated, responded to threat 13073 | -2/Research | Lost 3 allies 13088 | -2/Research | Discovered exit to Access (range 15) 13138 | -2/Research | Destroyed 7 combat bots 13221 | -2/Research | Zion Heavy squad teleported in 13246 | -2/Research | Found Prototype Reactor 13246 | -2/Research | Identified Singularity Reactor 13249 | -2/Research | Found Singularity Reactor 13269 | -2/Research | First assault squad dispatched 13352 | -2/Research | Lost 4 parts (2n1u1w) 13367 | -2/Research | Identified Transdimensional Reconstructor (x2) 13367 | -2/Research | Warped through subspace 13387 | -2/Research | Lost 3 parts (3n) 13388 | -2/Research | Build established: Scavenger-Mutant 13529 | -2/Research | Zion Light squad teleported in 13531 | -2/Research | Core integrity fell below 50% 13549 | -2/Research | P-80 Master assimilated allied F6-20T(z) 13559 | -2/Research | Lost 5 parts (3n2u) 13589 | -2/Research | Spotted B-90 Cyclops 13596 | -2/Research | Core integrity fell below 20% 13599 | -2/Research | Destroyed by S-43 Plague with Heavy Machine Gun Last Messages --------------- 13592_ U-05 Engineer lays Concrete. 13592_ Zio. Biocell Array destroyed. 13592_ G-73 Enforcer overheating. 13592_ Dropped Potential Cannon. 13593_ Dropped Singularity Reactor. 13593_ Quantum Router destroyed. 13593_ K-01 Serf collects debris. 13593_ G-73 Enforcer overheating. 13593_ Dropped Exp. Matter Compressor. 13594_ U-05 Engineer lays Concrete. 13594_ Dropped Exp. Matter Compressor. 13594_ Exp. Signal Interpreter destroyed. 13594_ System corrupted by crushing effect (+3). 13594_ G-73 Enforcer overheating. 13595_ Dropped Hcp. Storage Unit. 13596_ U-05 Engineer lays Concrete. 13596_ Dropped Gui. Remote Datajack. 13596_ Acquired 30 matter. 13597_ K-01 Serf collects debris. 13597_ U-05 Engineer lays Concrete. Map ----- +----------------------------------------------------+ | ?????????????????????????????????????????????????? | | ?????????????????????????????????????????????????? | | ?????????????????????????????????????????????????? | | ?????????????????????????????????????????????????? | | ?????????????????????????????????????????????????? | | ?????????????????????????????????????????????????? | | ?????????????????????????????????????????????????? | | ?????????????????????????????????????????????????? | | ?????????????????????????????????????????????????? | | ?????????????????????????????????????????????????? | | ?????????????????????????????????????????????????? | | ####?????????????????????????????????????????????? | | #?????????????????????????????????????????????? | | ??????????????##?????????????????????????????? | | #?????????????# #?????????????????????????????? | | " #???###############???????????????????????????? | | " #???# ! # #???????????????????????????? | | " #???# #####???????????????????????????? | | S #???# """ !##??????????????????????????????? | | " ##### """ *%#####??##???????????????????????? | | " [# + """ !" ### ????????????????????????? | | " ##### ###;##;##???????????????????????? | | ### # ### #???????????????????????? | | # # == ##!!! "#???????????????????????? | | %*[ # !=[]* "##### #??????????????? | | =%!*% %%*[b !! @ #??????????????? | | !!%=![!! ;#?????????????? | | [%g g[%*|!! ##?????????????? | | [[ !! #??????????????? | | =%= % k #####??????????????? | | g % #??????????????????? | | #??????????????????? | | m!=| #??????????????????? | | R ! ?????????????????? | | s ???????????????? | | s ?????????????? | | #################Y########;;; s ^ ????????????? | | ????????????##?? ??????# BBss ???????????? | | ??????????????? ? ??????? BB ???????????? | | ?????????????? !!!?? ??????## k "" ??????????? | | ?????????????? !!!??? ??????? "" ??????????? | | ?????????????# !!???????????? "T ?????????? | | ?????????????# ???????????? ""? ?????????? | | ?????????????# ????????????? ""?? ??????????? | | ?????????????# ????????????? ???? ???????????? | | ?????????????# ?????????????? ????????????????? | | ?????????????? ?????????????? ????????????????? | | ?????????????????????????????????????????????????? | | ?????????????????????????????????????????????????? | | ?????????????????????????????????????????????????? | +----------------------------------------------------+ Best States ------------- Heat Dissipation 165 Coolant Potential 120 Energy Generation 80 Energy Capacity 1450 Matter Stores 300 Matter Capacity 300 Sight Range 24 Robot Scan Range 20 Terrain Scan Range 20 Terrain Scan Density 1010 Jamming Range 14 Cloak Strength 4 Power Amplification 30 Additional Mass Support 9 Armor Coverage 450 Core Shielding 30 Weapon Shielding 100 Melee Speed Boost 50 Phase Shifting 10 Evasion (%) 88 Targeting Accuracy 12 Melee Accuracy 12 Target Analysis 12 Core Analysis 8 Recoil Reduction 2 Offensive Hacking 21 Authchip Count 7 Item Schematics ----------------- Recalibrator | -7/Zion | Archive Adv. Signal Interpreter | -7/Zion | Archive Spear | -7/Zion | Archive Adv. Terrain Scanner | -7/Zion | Archive Imp. EM Pulse Cannon | -7/Zion | Archive Fusion Compressor | -7/Zion | Archive Imp. Melee Analysis Suite | -7/Zion | Archive Hvy. Phase Cannon | -7/Zion | Archive Imp. Launcher Guidance Computer | -7/Zion | Archive Adv. Terrain Scan Processor | -7/Zion | Archive Proton Cannon | -7/Zion | Archive Armor Integrity Analyzer | -7/Zion | Archive Adv. Melee Analysis Suite | -7/Zion | Archive IFF Parser | -7/Zion | Archive Imp. Medium Armor Plating | -7/Zion | Archive Combat Drone Bay | -6/Data Miner | Free Lgt. Regenerative Plating | -6/Data Miner | Free Enh. Flexi-carbon Leg | -6/Data Miner | Free Prc. Matter Filter | -6/Data Miner | Free Tri-rail Accelerator | -6/Data Miner | Free Imp. Linear Gravjet | -6/Data Miner | Free Nanoactuators | -6/Data Miner | Free Dispersion Rifle | -6/Data Miner | Free Imp. Weapon Cycler | -6/Data Miner | Free Hvy. Gauss Cannon | -6/Data Miner | Free Adv. Component Analysis Suite | -6/Data Miner | Free Q-thruster | -6/Data Miner | Free Thermal Defense Suite | -5/Factory | Z-intel Biomechanical Wings | -5/Factory | Z-intel Force Rifle | -5/Factory | Z-intel Prc. Energy Filter | -5/Factory | Z-intel Tiamat Missile Launcher | -5/Factory | Z-intel Enh. Armored Leg | -5/Factory | Z-intel Cld. Nuclear Pulse Thruster | -5/Factory | Z-intel Impact Mace | -5/Factory | Z-intel Gui. EMP Blaster | -5/Factory | Z-intel Assault Drone Bay | -4/Zhirov | Free Exp. Heat Sink | -4/Zhirov | Free Exp. Optical Array | -4/Zhirov | Free Imp. Arc Thrower | -4/Zhirov | Free Robot Schematics ------------------ A-02 Transporter | -7/Zion | Archive L-31 Rogue | -7/Zion | Archive X-77 Beamer | -7/Zion | Archive S-27 Virus | -6/Data Miner | Free L-41 Fighter | -6/Data Miner | Free M-22 Extractor | -6/Data Miner | Free A-27 Freighter | -6/Data Miner | Free R-10 Processor | -6/Data Miner | Free S-43 Plague | -3/Armory | Z-intel B-60 Warrior | -3/Armory | Z-intel A-15 Conveyor | -3/Armory | Z-intel Fabricated ------------ X-77 Beamer | x2 | -6/Factory | Authchip Repaired ---------- Nothing Studied --------- Deuterium Engine | -6/Factory | Hacked Antimatter Reactor | -5/Factory | Hacked Alien Tech Used ----------------- Core Expander Integrated Dissipator Transdimensional Reconstructor Achievements -------------- None Challenges ------------ None Game ------ Seed ArcHackingBrace Manual? 0 Play Time 03:59:14 Cumulative 614.4 hours Start 2025.12.09 @ 11:23:55 End 2025.12.12 @ 01:59:41 Sessions 8 Manual Loads 0 Difficulty Rogue Special Mode None Game No. 782 Rogue 782 Adventurer 0 Explorer 0 Win Type - Total 22 Types 10/1/3/2/2/0/2/2/0/0 Lore% 94 Gallery% 90 Achievement% 78 Wizard Run 0 Options --------- Layout 0 ASCII 0 Keyboard 0 Movement Mouse Keybinds 0 Fullscreen 1 Font 24/Terminus Map View 76x50 Zoom Use 0% Tactical HUD 1 Map Filters NONE Filters NONE Steam 1 RUN: 15eefb2b-7d92-4cc8-bde5-fdbf14f54502